bitfinex-derivatives/quotes_BTCF0:USTF0_20250929
["timestamp","ask_amount","ask_price","bid_price","bid_amount"]
[1759166308758,0.56419445,113810.0,113800.0,1.2853183]
[1759166309356,0.53279239,113810.0,113800.0,1.2853183]
[1759166310460,0.53279239,113810.0,113800.0,0.4612383]
[1759166310662,0.53279239,113810.0,113800.0,1.1973432]
[1759166310961,0.53279239,113810.0,113800.0,1.2851591]
[1759166311160,0.53279239,113810.0,113800.0,1.2967091]
[1759166311361,0.17199239,113810.0,113800.0,1.2967091]
[1759166312464,0.08062322,113810.0,113800.0,2.0575091]
[1759166312654,0.03342823,113810.0,113800.0,2.40777495]
[1759166312858,0.002,113810.0,113800.0,2.43919365]
[1759166313366,0.002,113810.0,113800.0,2.0889278]
[1759166314066,0.1247981,113810.0,113800.0,0.8220391]
[1759166314467,0.1247981,113810.0,113800.0,1.6451591]
[1759166317165,0.1247981,113810.0,113800.0,1.6444391]
[1759166318467,0.0898081,113810.0,113800.0,1.6559891]
[1759166318671,0.0898081,113810.0,113800.0,1.30572325]
[1759166318869,0.0898081,113810.0,113800.0,1.6559891]
[1759166319574,0.002,113810.0,113800.0,1.6559891]
[1759166319773,0.0898081,113810.0,113800.0,1.6559891]
[1759166320969,0.1024981,113810.0,113800.0,1.5566232]
[1759166321171,0.1024981,113810.0,113800.0,0.84555735]
[1759166321475,0.4855981,113810.0,113800.0,1.1955032]
[1759166321777,0.4855981,113810.0,113800.0,1.2833191]
[1759166322177,0.4855981,113810.0,113800.0,0.4612391]
[1759166322377,0.4855981,113810.0,113800.0,1.2830791]
[1759166323178,0.4855981,113810.0,113800.0,1.3144978]
[1759166324280,0.4855981,113810.0,113800.0,0.96423195]
[1759166324481,0.4855981,113810.0,113800.0,1.36162586]
[1759166324777,0.1247981,113810.0,113800.0,1.72242586]
[1759166326276,0.1247981,113810.0,113800.0,1.24239126]
[1759166326485,0.4855981,113810.0,113800.0,0.42872593]
[1759166326684,0.4855981,113810.0,113800.0,1.21928437]
[1759166328383,0.1247981,113810.0,113800.0,1.21928437]
[1759166329579,0.03699,113810.0,113800.0,1.30710137]
[1759166329787,0.002,113810.0,113800.0,1.68735176]
[1759166330787,0.1031493,113810.0,113800.0,1.22718476]
[1759166331184,0.4866993,113810.0,113800.0,1.22626476]
[1759166331386,0.4866993,113810.0,113800.0,0.42872403]
[1759166331677,0.4866993,113810.0,113800.0,0.84593662]
[1759166331678,1.23696515,113810.0,113800.0,0.84593662]
[1759166331883,0.8866993,113810.0,113800.0,0.84593662]
[1759166332391,0.8866993,113810.0,113800.0,1.21922247]
[1759166334384,0.1258993,113810.0,113800.0,1.30703947]
[1759166334581,0.002,113810.0,113800.0,1.73864103]
[1759166334781,0.002,113810.0,113800.0,1.71494176]
[1759166335390,0.002,113810.0,113800.0,2.07574176]
[1759166335590,0.0898093,113810.0,113800.0,2.07574176]
[1759166335890,0.4866993,113810.0,113800.0,1.22700476]
[1759166336185,0.4866993,113810.0,113800.0,0.40592476]
[1759166336390,0.8866993,113810.0,113800.0,1.25061721]
[1759166336689,0.8866993,113810.0,113800.0,1.21901565]
[1759166337990,0.4866993,113810.0,113800.0,1.30683265]
[1759166338184,0.4866993,113810.0,113800.0,1.33843421]
[1759166339893,0.4866993,113810.0,113800.0,0.39801565]
[1759166340085,0.4866993,113810.0,113800.0,1.21985565]
[1759166340284,0.39889,113810.0,113800.0,1.33927421]
[1759166340491,0.4866993,113810.0,113800.0,1.33927421]
[1759166340684,0.37614,113810.0,113800.0,1.33927421]
[1759166340888,0.002,113810.0,113800.0,1.31558176]
[1759166341083,0.002,113810.0,113800.0,2.39504605]
[1759166341390,0.002,113810.0,113800.0,2.09190826]
[1759166341784,0.002,113810.0,113800.0,2.44217411]
[1759166342090,0.002,113810.0,113800.0,2.09190826]
[1759166342491,0.089809,113810.0,113800.0,1.69190826]
[1759166346194,0.103149,113810.0,113800.0,1.69190826]
[1759166346394,0.089809,113810.0,113800.0,1.69190826]
[1759166347296,0.125899,113810.0,113800.0,0.87006826]
[1759166347492,0.125899,113810.0,113800.0,0.55138367]
[1759166347694,0.486699,113810.0,113800.0,1.27611252]
[1759166347890,0.486699,113810.0,113800.0,0.02472509]
[1759166348095,0.886699,113810.0,113800.0,1.19827094]
[1759166348692,0.886699,113810.0,113800.0,0.04774509]
[1759166348890,0.886699,113810.0,113800.0,1.1977232]
[1759166349302,0.886699,113810.0,113800.0,0.3743232]
[1759166349792,0.886699,113810.0,113800.0,0.00103735]
[1759166350195,1.2370179,113810.0,113800.0,0.35135625]
[1759166350400,0.886699,113810.0,113800.0,0.35135625]
[1759166350699,1.2370179,113810.0,113800.0,0.35135625]
[1759166352702,1.26844613,113810.0,113800.0,0.00103735]
[1759166353000,1.28421289,113810.0,113800.0,0.00103735]
[1759166354592,1.28421289,113810.0,113800.0,0.35135625]
[1759166354791,1.35601399,113810.0,113800.0,0.70167515]
[1759166355198,1.35601399,113810.0,113800.0,0.35135625]
[1759166355499,1.38742436,113810.0,113800.0,0.35135625]
[1759166355697,1.73774326,113810.0,113800.0,0.35135625]
[1759166357108,1.73774326,113810.0,113800.0,0.37253625]
[1759166357602,1.73774326,113810.0,113800.0,0.35135625]
[1759166359100,1.73774326,113810.0,113800.0,0.00103735]
[1759166361002,1.38742436,113810.0,113800.0,0.00103735]
[1759166361408,1.73774326,113810.0,113800.0,0.00103735]
[1759166361997,1.73774326,113810.0,113800.0,0.35135625]
[1759166362298,1.73774326,113810.0,113800.0,0.00103735]
[1759166363004,1.69054827,113810.0,113800.0,0.00103735]
[1759166364705,2.09054827,113810.0,113800.0,0.00103735]
[1759166365304,2.09054827,113810.0,113790.0,0.3503189]
[1759166365305,0.1230454,113790.0,113780.0,0.3719889]
[1759166365504,0.4838454,113790.0,113780.0,0.7223078]
[1759166366205,0.4838454,113790.0,113780.0,0.02167]
[1759166366505,0.4838454,113790.0,113780.0,0.7273078]
[1759166367307,1.1949643,113790.0,113780.0,0.3553189]
[1759166367707,2.0147643,113790.0,113780.0,0.3603189]
[1759166367898,2.08328471,113790.0,113780.0,0.3603189]
[1759166368904,2.08328471,113790.0,113780.0,0.3730828]
[1759166369804,2.08328471,113790.0,113780.0,0.0227639]
[1759166370199,2.08328471,113790.0,113780.0,0.3603189]
[1759166370607,2.09191691,113790.0,113780.0,0.01]
[1759166370811,2.09191691,113790.0,113780.0,0.3603189]
[1759166371011,2.09191691,113790.0,113780.0,0.01]
[1759166371311,2.09191691,113790.0,113780.0,0.3603189]
[1759166371608,0.46454041,113790.0,113780.0,0.8201409]
[1759166371808,0.06852041,113790.0,113780.0,1.5820098]
[1759166372003,0.4625427,113800.0,113780.0,2.4895229]
[1759166372207,0.4838427,113800.0,113790.0,0.7223078]
[1759166372504,0.4838427,113800.0,113790.0,0.8101332]
[1759166372708,0.4838377,113800.0,113790.0,1.2101332]
[1759166372909,0.4625377,113800.0,113790.0,1.2101332]
[1759166373305,0.4625377,113800.0,113790.0,1.23382094]
[1759166373609,0.4625377,113800.0,113790.0,1.14799554]
[1759166374209,0.4625377,113800.0,113790.0,1.1223078]
[1759166374400,0.4625377,113800.0,113790.0,1.14599554]
[1759166374807,0.4838377,113800.0,113790.0,0.79567664]
[1759166375106,0.4838377,113800.0,113790.0,0.004]
[1759166375309,0.4838377,113800.0,113790.0,0.3759889]
[1759166375700,0.4838377,113800.0,113790.0,0.39967664]
[1759166375906,0.4838377,113800.0,113790.0,0.74999554]
[1759166376203,0.4838377,113800.0,113790.0,0.8141332]
[1759166376404,0.4838377,113800.0,113790.0,0.74999554]
[1759166377113,0.4838377,113800.0,113790.0,0.39967664]
[1759166377813,0.4838377,113800.0,113790.0,0.83782094]
[1759166378013,0.1230377,113800.0,113790.0,0.83782094]
[1759166378714,0.38305285,113810.0,113790.0,1.24571446]
[1759166378715,0.4619541,113810.0,113790.0,1.24571446]
[1759166378914,0.4832541,113810.0,113800.0,0.74599382]
[1759166379914,0.833573,113810.0,113800.0,0.3503189]
[1759166380105,0.1230377,113800.0,113790.0,0.04935602]
[1759166380304,0.4838377,113800.0,113790.0,0.39967492]
[1759166382314,0.4838377,113800.0,113790.0,0.39567492]
[1759166382520,0.4838377,113800.0,113790.0,0.39767492]
[1759166384112,0.4838377,113800.0,113790.0,0.04735602]
[1759166384310,0.4838377,113800.0,113790.0,0.39767492]
[1759166384517,0.39602,113800.0,113790.0,1.23581922]
[1759166384723,0.39544,113810.0,113800.0,0.1094877]
[1759166384911,0.39544,113810.0,113800.0,0.8101255]
[1759166385117,0.4832501,113810.0,113800.0,0.8101255]
[1759166385317,0.4832501,113810.0,113800.0,1.65141152]
[1759166385820,0.4619499,113810.0,113800.0,1.65141152]
[1759166386021,0.37514,113810.0,113800.0,1.65141152]
[1759166386218,0.3618,113810.0,113800.0,1.69172278]
[1759166386423,0.3618,113810.0,113800.0,2.44204168]
[1759166386620,0.3628,113810.0,113800.0,2.09172278]
[1759166387927,0.4506099,113810.0,113800.0,2.09172278]
[1759166388329,0.4506099,113810.0,113800.0,2.06014152]
[1759166388834,0.4636899,113810.0,113800.0,2.05141152]
[1759166390637,0.4636899,113810.0,113800.0,1.23381152]
[1759166390834,0.4636899,113810.0,113800.0,2.05073152]
[1759166392731,0.4636899,113810.0,113800.0,1.96291382]
[1759166393034,0.4856499,113810.0,113800.0,0.44535602]
[1759166393240,0.4856499,113810.0,113800.0,0.74599382]
[1759166393539,0.4856499,113810.0,113800.0,1.56195382]
[1759166394738,0.4856499,113810.0,113800.0,1.64977282]
[1759166394939,0.4856499,113810.0,113800.0,0.74599382]
[1759166395140,0.4856499,113810.0,113800.0,1.56163382]
[1759166395439,0.4856499,113810.0,113800.0,1.5379078]
[1759166395828,0.4856499,113810.0,113800.0,0.7223078]
[1759166396034,0.4856499,113810.0,113800.0,1.5379078]
[1759166398142,0.4856499,113810.0,113800.0,0.83727]
[1759166398741,0.4856499,113810.0,113800.0,1.5379078]
[1759166399237,0.087819,113800.0,113790.0,0.14309398]
[1759166399443,0.122859,113800.0,113790.0,1.33006288]
[1759166399841,0.03504,113800.0,113790.0,1.68038178]
[1759166400239,0.122859,113800.0,113790.0,1.68038178]
[1759166401447,0.122859,113800.0,113790.0,1.65669576]
[1759166401644,0.122859,113800.0,113790.0,1.66069576]
[1759166401851,0.122859,113800.0,113790.0,1.57286906]
[1759166402138,0.122859,113800.0,113790.0,0.39952749]
[1759166402139,0.483659,113800.0,113790.0,0.39952749]
[1759166402338,0.483659,113800.0,113790.0,1.21220749]
[1759166402643,0.8339779,113800.0,113790.0,0.02567859]
[1759166402841,0.8339779,113800.0,113790.0,1.1669989]
[1759166403046,1.2339779,113800.0,113790.0,0.81688]
[1759166403347,1.2339779,113800.0,113790.0,1.1671989]
[1759166403537,1.2339779,113800.0,113790.0,0.81688]
[1759166403733,1.2339779,113800.0,113790.0,1.1671989]
[1759166403945,1.2339779,113800.0,113790.0,0.3523189]
[1759166404540,1.26538827,113800.0,113790.0,0.3523189]
[1759166405238,1.61570717,113800.0,113790.0,0.002]
[1759166405440,1.31258326,113800.0,113790.0,0.3523189]
[1759166405643,1.66290216,113800.0,113790.0,0.3523189]
[1759166405842,1.31258326,113800.0,113790.0,0.002]
[1759166406345,1.31258326,113800.0,113790.0,0.3523189]
[1759166407346,1.31258326,113800.0,113790.0,0.002]
[1759166407646,1.66290216,113800.0,113790.0,0.002]
[1759166408148,1.31258326,113800.0,113790.0,0.3523189]
[1759166409143,1.31258326,113800.0,113790.0,0.002]
[1759166409349,1.31258326,113800.0,113790.0,0.3523189]
[1759166410149,1.26538827,113800.0,113790.0,0.3523189]
[1759166410443,1.26538827,113800.0,113790.0,0.37393553]
[1759166410444,0.51506937,113800.0,113790.0,0.37393553]
[1759166411149,0.483659,113800.0,113790.0,0.37393553]
[1759166412042,0.483659,113800.0,113790.0,0.02353]
[1759166412244,0.483659,113800.0,113790.0,0.37393553]
[1759166416047,0.483659,113800.0,113790.0,0.002]
[1759166416555,1.23406453,113800.0,113790.0,0.002]
[1759166420355,1.2654749,113800.0,113790.0,0.002]
[1759166420755,1.23406453,113800.0,113790.0,0.002]
[1759166421256,1.2654749,113800.0,113790.0,0.002]
[1759166422956,0.91506937,113800.0,113790.0,0.002]
[1759166423162,1.2654749,113800.0,113790.0,0.002]
[1759166423358,0.91506937,113800.0,113790.0,0.002]
[1759166423556,0.51506937,113800.0,113790.0,0.37431553]
[1759166423751,1.297739,113800.0,113790.0,0.37431553]
[1759166424153,1.297739,113800.0,113790.0,0.35240553]
[1759166424761,1.297739,113800.0,113790.0,0.37431553]
[1759166426757,1.64814453,113800.0,113790.0,0.002]
[1759166427157,1.6795549,113800.0,113790.0,0.002]
[1759166427566,1.72674989,113800.0,113790.0,0.002]
[1759166428362,1.69533952,113800.0,113790.0,0.002]
[1759166429257,1.72674355,113800.0,113790.0,0.002]
[1759166429562,1.69533952,113800.0,113790.0,0.002]
[1759166430463,1.67955584,113800.0,113790.0,0.002]
[1759166432965,1.69533952,113800.0,113790.0,0.002]
[1759166434067,0.1224214,113770.0,113760.0,0.42757538]
[1759166434263,0.4832214,113770.0,113760.0,0.42757538]
[1759166434462,0.4832214,113770.0,113760.0,0.077198]
[1759166434661,0.4832214,113770.0,113760.0,0.39602227]
[1759166435459,0.4832214,113770.0,113760.0,0.06561674]
[1759166435653,0.4832214,113770.0,113760.0,0.42602227]
[1759166437364,0.55320138,113770.0,113760.0,0.42602227]
[1759166437666,0.55320138,113770.0,113760.0,0.07561674]
[1759166437967,0.55320138,113770.0,113760.0,0.42602227]
[1759166438265,0.56220634,113770.0,113760.0,0.42602227]
[1759166441968,0.56220634,113770.0,113760.0,0.03]
[1759166442272,0.56220634,113770.0,113760.0,0.05191]
[1759166442572,0.56220634,113770.0,113760.0,0.40231553]
[1759166444966,0.56220634,113770.0,113760.0,0.42600024]
[1759166447674,0.46535998,113770.0,113760.0,0.51384934]
[1759166447976,0.55320138,113770.0,113760.0,0.42600024]
[1759166450469,0.56192321,113770.0,113760.0,0.42600024]
[1759166450668,0.56192321,113770.0,113760.0,0.86425537]
[1759166450878,0.55320138,113770.0,113760.0,0.86425537]
[1759166451070,0.55320138,113770.0,113760.0,1.26425537]
[1759166451470,0.55320138,113770.0,113760.0,0.91384984]
[1759166452678,0.55320138,113770.0,113760.0,1.26425537]
[1759166452977,0.55320138,113770.0,113760.0,1.27215192]
[1759166454676,0.55320138,113770.0,113760.0,1.29584799]
[1759166455879,0.55320138,113770.0,113760.0,2.02223839]
[1759166456778,0.55320138,113770.0,113760.0,1.20799839]
[1759166456978,0.55320138,113770.0,113760.0,2.02223839]
[1759166457177,0.55320138,113770.0,113760.0,1.64813679]
[1759166457372,0.55320138,113770.0,113760.0,0.83389679]
[1759166457678,0.55320138,113770.0,113760.0,1.64813679]
[1759166458079,0.55320138,113770.0,113760.0,0.83389679]
[1759166458279,0.55320138,113770.0,113760.0,1.64813679]
[1759166459475,0.55320138,113770.0,113760.0,0.06158126]
[1759166460279,0.55320138,113770.0,113760.0,0.08339126]
[1759166462378,0.55320138,113770.0,113760.0,0.43379679]
[1759166464070,0.90360691,113770.0,113760.0,0.08339126]
[1759166464278,0.90360691,113770.0,113760.0,0.06158126]
[1759166464470,2.11784691,113770.0,113760.0,0.08530825]
[1759166464677,2.14927708,113770.0,113760.0,0.03]
[1759166465279,2.19642233,113770.0,113760.0,0.03]
[1759166465682,0.1248896,113760.0,113750.0,0.04553699]
[1759166465871,0.4856896,113760.0,113750.0,0.04553699]
[1759166466886,0.4876896,113760.0,113750.0,0.04553699]
[1759166467980,0.4876896,113760.0,113750.0,0.02372699]
[1759166468285,0.1248973,113750.0,113740.0,1.21803679]
[1759166468485,0.4856973,113750.0,113740.0,1.21803679]
[1759166469380,0.4856973,113750.0,113740.0,0.40379679]
[1759166469585,0.4856973,113750.0,113740.0,1.21903679]
[1759166469780,0.4856973,113750.0,113740.0,0.40479679]
[1759166469986,0.4856973,113750.0,113740.0,1.21903679]
[1759166470180,0.4856973,113750.0,113740.0,0.42849483]
[1759166470380,0.4856973,113750.0,113740.0,1.30690179]
[1759166470883,0.4856973,113750.0,113740.0,0.40379679]
[1759166471087,0.4856973,113750.0,113740.0,0.43049487]
[1759166471287,0.4856973,113750.0,113740.0,1.24473487]
[1759166472184,0.4856973,113750.0,113740.0,1.59564284]
[1759166474581,0.39784,113750.0,113740.0,1.68350784]
[1759166474987,0.4856973,113750.0,113740.0,1.68350784]
[1759166475282,0.4856973,113750.0,113740.0,1.59564284]
[1759166476085,0.4850173,113750.0,113740.0,1.18140284]
[1759166476388,0.4850173,113750.0,113740.0,2.05192658]
[1759166477391,0.1242173,113750.0,113740.0,2.05192658]
[1759166481086,0.1242173,113750.0,113740.0,1.23768658]
[1759166481384,0.4850173,113750.0,113740.0,0.74982158]
[1759166481590,0.83567405,113750.0,113740.0,0.86274808]
[1759166481790,1.23567405,113750.0,113740.0,0.02669808]
[1759166481986,1.23567405,113750.0,113740.0,0.003]
[1759166482983,1.25618903,113750.0,113740.0,0.003]
[1759166484391,2.07042903,113750.0,113740.0,0.003]
[1759166484788,2.1018592,113750.0,113740.0,0.003]
[1759166484989,1.2876192,113750.0,113740.0,0.003]
[1759166485188,0.93696245,113750.0,113740.0,0.003]
[1759166485386,2.1018592,113750.0,113740.0,0.003]
[1759166485586,1.2876192,113750.0,113740.0,0.003]
[1759166485787,1.25618903,113750.0,113740.0,0.003]
[1759166485988,2.07042903,113750.0,113740.0,0.003]
[1759166486287,2.07042903,113750.0,113740.0,0.35365675]
[1759166486690,2.07042903,113750.0,113740.0,0.003]
[1759166487396,2.07046903,113750.0,113740.0,0.003]
[1759166488393,2.1018992,113750.0,113740.0,0.003]
[1759166490687,1.2876192,113750.0,113740.0,0.003]
[1759166490888,2.1018992,113750.0,113740.0,0.003]
[1759166491193,1.2876192,113750.0,113740.0,0.003]
[1759166491695,2.1018992,113750.0,113740.0,0.003]
[1759166492995,0.5841077,113750.0,113740.0,0.7274635]
[1759166493198,0.50553228,113750.0,113740.0,1.1274635]
[1759166497497,0.50553228,113750.0,113740.0,0.42615]
[1759166497697,0.50553228,113750.0,113740.0,1.1274635]
[1759166498897,0.50553228,113750.0,113740.0,0.7274635]
[1759166499302,0.50553228,113750.0,113740.0,0.8153285]
[1759166500403,0.50553228,113750.0,113740.0,0.7274635]
[1759166501392,0.50553228,113750.0,113740.0,1.5417035]
[1759166502105,0.50553228,113750.0,113740.0,0.7274635]
[1759166502505,0.53696245,113750.0,113740.0,0.7274635]
[1759166502707,0.53696245,113750.0,113740.0,1.5416635]
[1759166503007,0.50553228,113750.0,113740.0,1.5416635]
[1759166503304,0.50553228,113750.0,113740.0,0.7274635]
[1759166503609,0.50553228,113750.0,113740.0,1.5416635]
[1759166504105,0.50553228,113750.0,113740.0,0.7274635]
[1759166504500,0.50553228,113750.0,113740.0,1.5416235]
[1759166505303,0.50553228,113750.0,113740.0,1.6294883]
[1759166506402,0.02051498,113750.0,113740.0,2.78125631]
[1759166506608,0.02051498,113750.0,113740.0,2.01422437]
[1759166506904,0.10837198,113750.0,113740.0,2.82838437]
[1759166508005,0.10837198,113750.0,113740.0,2.01422437]
[1759166508206,0.10837198,113750.0,113740.0,2.82834437]
[1759166509005,0.10837198,113750.0,113740.0,2.47768762]
[1759166509207,0.10837198,113750.0,113740.0,2.78121631]
[1759166510105,0.10837198,113750.0,113740.0,1.96709631]
[1759166510605,0.10837198,113750.0,113740.0,2.78117631]
[1759166511910,0.10837198,113750.0,113740.0,1.96709631]
[1759166512109,0.50399198,113750.0,113740.0,0.7827274]
[1759166512302,0.50399198,113750.0,113740.0,1.6846322]
[1759166513002,0.50399198,113750.0,113740.0,1.66094956]
[1759166513308,0.50399198,113750.0,113740.0,1.6846303]
[1759166513901,0.50399198,113750.0,113740.0,0.8705903]
[1759166514108,0.50399198,113750.0,113740.0,1.6845903]
[1759166515009,0.50399198,113750.0,113740.0,0.8705903]
[1759166515213,0.50399198,113750.0,113740.0,1.5966855]
[1759166516017,0.50399198,113750.0,113740.0,0.7827255]
[1759166516310,0.50399198,113750.0,113740.0,0.87169126]
[1759166516497,0.85464873,113750.0,113740.0,0.40048778]
[1759166516698,0.50399198,113750.0,113740.0,1.5414235]
[1759166516902,0.50399198,113750.0,113740.0,0.7274635]
[1759166517119,0.50399198,113750.0,113740.0,1.5414235]
[1759166517403,0.50399198,113750.0,113740.0,1.65296933]
[1759166518510,0.38131498,113750.0,113740.0,2.01235608]
[1759166518813,0.46917198,113750.0,113740.0,1.66169933]
[1759166519009,0.10837198,113750.0,113740.0,1.66169933]
[1759166519309,0.10837198,113750.0,113740.0,2.03039956]
[1759166521708,0.02051498,113750.0,113740.0,2.38105631]
[1759166521919,0.02051498,113750.0,113740.0,2.79660311]
[1759166522113,0.4837155,113770.0,113760.0,0.1101193]
[1759166522316,0.4837155,113770.0,113760.0,1.64900262]
[1759166523018,0.4837155,113770.0,113760.0,1.6253128]
[1759166523216,0.4837155,113770.0,113760.0,1.64900262]
[1759166523422,0.4576455,113770.0,113760.0,1.66055262]
[1759166523917,0.4576455,113770.0,113760.0,0.83512262]
[1759166523918,0.4924655,113770.0,113760.0,0.83512262]
[1759166524222,0.1266655,113770.0,113760.0,1.64900262]
[1759166530325,0.004,113770.0,113760.0,2.02904092]
[1759166530534,0.004,113770.0,113760.0,2.42142735]
[1759166530724,0.0918416,113770.0,113760.0,2.42142735]
[1759166531418,0.004,113770.0,113760.0,2.42142735]
[1759166531620,0.4486295,113790.0,113780.0,0.1188339]
[1759166531816,0.0878295,113790.0,113780.0,2.02615631]
[1759166532321,0.0878295,113790.0,113780.0,1.67468404]
[1759166532523,0.0878295,113790.0,113780.0,2.06707047]
[1759166532826,0.55260469,113800.0,113790.0,0.1100962]
[1759166533022,0.55260469,113800.0,113790.0,0.81059418]
[1759166533023,0.48005417,113800.0,113790.0,0.81059418]
[1759166533221,0.448624,113800.0,113790.0,0.81059418]
[1759166533727,0.087824,113800.0,113790.0,0.81059418]
[1759166533928,0.087824,113800.0,113790.0,1.62499418]
[1759166534128,0.087824,113800.0,113790.0,1.62487418]
[1759166534325,0.0878184,113800.0,113790.0,1.62486638]
[1759166534523,0.51425567,113810.0,113800.0,0.1093584]
[1759166534725,0.51425567,113810.0,113800.0,0.45960739]
[1759166535230,0.51425567,113810.0,113800.0,1.18582899]
[1759166535429,0.51425567,113810.0,113800.0,1.27364739]
[1759166535731,0.4958207,113810.0,113800.0,1.27364739]
[1759166535930,0.1350207,113810.0,113800.0,1.27364739]
[1759166536830,0.1650207,113810.0,113800.0,1.27364739]
[1759166537020,0.043,113810.0,113800.0,1.27364739]
[1759166537326,0.043,113810.0,113800.0,1.28519739]
[1759166537923,0.043,113810.0,113800.0,0.47115739]
[1759166538125,0.043,113810.0,113800.0,1.28475739]
[1759166538325,0.043,113810.0,113800.0,1.29377466]
[1759166538525,0.1308107,113810.0,113800.0,1.29377466]
[1759166538922,0.1308107,113810.0,113800.0,1.28475739]
[1759166539128,0.1308107,113810.0,113800.0,0.47115739]
[1759166539330,0.1308107,113810.0,113800.0,1.28475739]
[1759166539529,0.1308107,113810.0,113800.0,0.47115739]
[1759166539729,0.1308107,113810.0,113800.0,1.28471739]
[1759166540230,0.1536807,113810.0,113800.0,0.1209084]
[1759166540432,0.1536807,113810.0,113800.0,1.28471739]
[1759166540935,0.1308107,113810.0,113800.0,1.28471739]
[1759166541136,0.1308107,113810.0,113800.0,0.47115739]
[1759166541326,0.1308107,113810.0,113800.0,1.28471739]
[1759166542134,0.1308107,113810.0,113800.0,1.28467739]
[1759166542934,0.043,113810.0,113800.0,1.28467739]
[1759166543325,0.1308107,113810.0,113800.0,1.28467739]
[1759166543734,0.1308107,113810.0,113800.0,0.9349884]
[1759166543931,0.1308107,113810.0,113800.0,1.28523739]
[1759166546736,0.043,113810.0,113800.0,1.28523739]
[1759166546937,0.043,113810.0,113800.0,1.64603739]
[1759166547138,0.043,113810.0,113800.0,1.99628638]
[1759166547837,0.043,113810.0,113800.0,2.39628638]
[1759166548033,0.008,113810.0,113800.0,2.39628638]
[1759166548335,0.4612102,113830.0,113820.0,0.087803]
[1759166548531,0.4840802,113830.0,113820.0,1.60182098]
[1759166548736,0.4840802,113830.0,113820.0,1.51389798]
[1759166550240,0.4840802,113830.0,113820.0,0.70049798]
[1759166550441,0.4840802,113830.0,113820.0,1.51389798]
[1759166550740,0.4840802,113830.0,113820.0,1.52689798]
[1759166551337,0.4840802,113830.0,113820.0,1.53889798]
[1759166551542,0.4840802,113830.0,113820.0,0.72549798]
[1759166551745,0.4840802,113830.0,113820.0,1.53889798]
[1759166552042,0.4840802,113830.0,113820.0,0.72549798]
[1759166552334,0.4840802,113830.0,113820.0,1.18860899]
[1759166553636,0.4840802,113830.0,113820.0,0.37524899]
[1759166553837,0.4840802,113830.0,113820.0,1.18860899]
[1759166558348,0.4840802,113830.0,113820.0,0.83836]
[1759166558538,0.4840802,113830.0,113820.0,1.18860899]
[1759166560343,0.4840802,113830.0,113820.0,1.53885798]
[1759166560537,0.1004053,113830.0,113820.0,1.62666098]
[1759166561344,0.1004053,113830.0,113820.0,1.53885798]
[1759166561852,0.1004053,113830.0,113820.0,1.65032399]
[1759166563443,0.1004053,113830.0,113820.0,2.05032399]
[1759166564247,0.1004053,113830.0,113820.0,2.11931097]
[1759166570048,0.5235753,113830.0,113820.0,0.04866301]
[1759166570252,0.8843753,113830.0,113820.0,1.18848899]
[1759166570952,0.8843753,113830.0,113820.0,0.83824]
[1759166571256,0.8843753,113830.0,113820.0,1.18848899]
[1759166573856,0.91580547,113830.0,113820.0,1.18848899]
[1759166574744,0.5235753,113830.0,113820.0,1.18848899]
[1759166574948,0.5235753,113830.0,113820.0,0.37524899]
[1759166575156,0.5235753,113830.0,113820.0,1.18844899]
[1759166576155,0.55500547,113830.0,113820.0,1.18844899]
[1759166577255,0.5235753,113830.0,113820.0,1.18844899]
[1759166577758,0.8843753,113830.0,113820.0,1.18844899]
[1759166577957,0.91580547,113830.0,113820.0,1.18844899]
[1759166578157,0.55500547,113830.0,113820.0,1.18844899]
[1759166578359,0.5235753,113830.0,113820.0,1.18844899]
[1759166578654,0.55500547,113830.0,113820.0,1.18844899]
[1759166578860,0.91580547,113830.0,113820.0,1.18844899]
[1759166580360,0.45198542,113840.0,113820.0,2.09878576]
[1759166580557,0.40484017,113840.0,113830.0,0.43804429]
[1759166580867,0.01261,113840.0,113830.0,0.47938424]
[1759166581160,0.4847145,113850.0,113840.0,0.0877876]
[1759166581355,0.4847145,113850.0,113840.0,1.27488544]
[1759166581961,0.4847145,113850.0,113840.0,1.18709784]
[1759166583159,0.4847145,113850.0,113840.0,1.16340899]
[1759166583160,0.51614467,113850.0,113840.0,1.16340899]
[1759166583360,0.4847145,113850.0,113840.0,1.17740899]
[1759166583662,0.4847145,113850.0,113840.0,1.18440899]
[1759166585062,0.4847145,113850.0,113840.0,1.18436899]
[1759166585256,0.4847145,113850.0,113840.0,0.021]
[1759166585460,0.4847145,113850.0,113840.0,1.18436899]
[1759166585658,0.51614467,113850.0,113840.0,1.18436899]
[1759166587663,0.51614467,113850.0,113840.0,0.37124899]
[1759166587863,0.51614467,113850.0,113840.0,1.18432899]
[1759166591962,1.26639366,113850.0,113840.0,0.021]
[1759166592162,1.30268586,113850.0,113840.0,0.021]
[1759166592362,0.01365,113830.0,113820.0,0.35015389]
[1759166592564,0.51684733,113830.0,113820.0,1.16275389]
[1759166592764,0.51684733,113830.0,113820.0,1.51290778]
[1759166593266,0.4854154,113830.0,113820.0,1.51290778]
[1759166593470,0.4854154,113830.0,113820.0,1.53790778]
[1759166593667,0.4854154,113830.0,113820.0,0.838]
[1759166593966,0.8854154,113830.0,113820.0,1.19515389]
[1759166594166,1.23556929,113830.0,113820.0,1.19515389]
[1759166594564,1.23556929,113830.0,113820.0,0.845]
[1759166594766,1.23556929,113830.0,113820.0,1.19515389]
[1759166594961,1.23556929,113830.0,113820.0,0.38215389]
[1759166595164,1.23556929,113830.0,113820.0,0.032]
[1759166595165,1.25618149,113830.0,113820.0,0.032]
[1759166595362,1.61698149,113830.0,113820.0,0.032]
[1759166595569,2.46141342,113830.0,113820.0,0.032]
[1759166595870,2.46141342,113830.0,113820.0,0.38215389]
[1759166596166,2.46141342,113830.0,113820.0,0.032]
[1759166596571,2.46141342,113830.0,113820.0,0.38215389]
[1759166596969,2.11125953,113830.0,113820.0,0.032]
[1759166597169,2.46141342,113830.0,113820.0,0.38215389]
[1759166597469,2.46141342,113830.0,113820.0,0.032]
[1759166597669,2.46141342,113830.0,113820.0,0.38215389]
[1759166598574,2.46141342,113830.0,113820.0,0.032]
[1759166598871,0.1217931,113820.0,113810.0,0.35015389]
[1759166599066,0.83274699,113820.0,113810.0,0.35015389]
[1759166599970,0.83274699,113820.0,113810.0,0.35915389]
[1759166600371,0.83274699,113820.0,113810.0,0.35715389]
[1759166600563,0.90174814,113820.0,113810.0,0.35715389]
[1759166601562,0.55159425,113820.0,113810.0,0.37200389]
[1759166604877,0.90174814,113820.0,113810.0,0.007]
[1759166605070,0.90174814,113820.0,113810.0,0.35715389]
[1759166605270,0.90174814,113820.0,113810.0,0.007]
[1759166605472,0.90174814,113820.0,113810.0,0.35715389]
[1759166605770,0.55159425,113820.0,113810.0,0.35715389]
[1759166605976,0.90174814,113820.0,113810.0,0.35715389]